bitfinex/quotes_BTCUSD_20250127
["timestamp","ask_amount","ask_price","bid_price","bid_amount"]
[1738009651271,1.59934882,100380.0,100370.0,0.15057104]
[1738009651485,1.74878082,100380.0,100370.0,0.15057104]
[1738009651915,1.74878082,100380.0,100370.0,0.00112404]
[1738009652338,1.74478082,100380.0,100370.0,0.00112404]
[1738009652563,1.74478082,100380.0,100370.0,0.00142161]
[1738009654491,1.74478082,100380.0,100370.0,0.15086861]
[1738009654958,1.74478082,100380.0,100370.0,0.00142161]
[1738009655376,1.74478082,100380.0,100370.0,0.15086861]
[1738009657076,1.64743353,100380.0,100370.0,0.15086861]
[1738009658264,1.64743353,100380.0,100370.0,0.00142161]
[1738009659008,1.64743353,100380.0,100370.0,0.15086861]
[1738009660865,1.64743353,100380.0,100370.0,0.00142161]
[1738009661060,1.84478082,100380.0,100370.0,0.00142161]
[1738009662870,1.74478082,100380.0,100370.0,0.15086861]
[1738009663482,1.49800153,100380.0,100370.0,0.15086861]
[1738009663684,1.64743353,100380.0,100370.0,0.15086861]
[1738009664288,1.64757513,100380.0,100370.0,0.15086861]
[1738009664489,1.64757513,100380.0,100370.0,0.38195054]
[1738009664490,1.50814313,100380.0,100370.0,0.38195054]
[1738009664691,1.50814313,100380.0,100370.0,0.38185999]
[1738009664895,1.00545309,100380.0,100370.0,0.19786861]
[1738009665738,0.0101416,100380.0,100370.0,0.47054581]
[1738009665949,1.00545309,100380.0,100370.0,0.47054581]
[1738009666154,0.0101416,100380.0,100370.0,0.5678931]
[1738009667729,1.00545309,100380.0,100370.0,0.47054581]
[1738009667937,1.49814313,100380.0,100370.0,0.35086861]
[1738009668129,1.49814313,100380.0,100370.0,0.34786861]
[1738009668563,1.66752692,100380.0,100370.0,0.05442161]
[1738009668763,1.84492242,100380.0,100370.0,0.00742161]
[1738009669407,0.99545309,100380.0,100370.0,0.15686861]
[1738009669607,1.00545309,100380.0,100370.0,0.27954581]
[1738009669810,1.01540488,100380.0,100370.0,0.27954581]
[1738009670023,1.51809492,100380.0,100370.0,0.27354581]
[1738009670231,1.66752692,100380.0,100370.0,0.15086861]
[1738009670392,1.66752692,100380.0,100370.0,0.15386861]
[1738009670588,1.66752692,100380.0,100370.0,0.00442161]
[1738009670804,1.74492242,100380.0,100370.0,0.00442161]
[1738009671657,1.84492242,100380.0,100370.0,0.00442161]
[1738009671970,1.92072242,100380.0,100370.0,0.00442161]
[1738009672366,1.41803238,100380.0,100370.0,0.00442161]
[1738009672778,0.42272089,100380.0,100370.0,0.00442161]
[1738009673555,0.42272089,100380.0,100370.0,0.00142161]
[1738009673944,0.42672089,100380.0,100370.0,0.00142161]
[1738009675495,0.42406818,100380.0,100370.0,0.00142161]
[1738009675721,0.58406818,100380.0,100370.0,0.00142161]
[1738009675879,0.70706818,100380.0,100370.0,0.00142161]
[1738009676062,0.69706818,100380.0,100370.0,0.00142161]
[1738009676270,0.74206818,100380.0,100370.0,0.00142161]
[1738009676873,0.66206818,100380.0,100370.0,0.00142161]
[1738009677074,0.65806818,100380.0,100370.0,0.00142161]
[1738009677493,0.66206818,100380.0,100370.0,0.00242161]
[1738009679510,0.68167222,100380.0,100370.0,0.00242161]
[1738009680325,0.79167222,100380.0,100370.0,0.00242161]
[1738009680522,0.78167222,100380.0,100370.0,0.00242161]
[1738009681107,1.11057222,100380.0,100370.0,0.00242161]
[1738009681319,1.10057222,100380.0,100370.0,0.00242161]
[1738009681517,1.12057222,100380.0,100370.0,0.00242161]
[1738009681771,0.99057222,100380.0,100370.0,0.00242161]
[1738009681920,1.00057222,100380.0,100370.0,0.00242161]
[1738009682119,1.12057222,100380.0,100370.0,0.00242161]
[1738009683917,1.02257222,100380.0,100370.0,0.00242161]
[1738009684120,0.69942493,100380.0,100370.0,0.00242161]
[1738009684528,0.84942493,100380.0,100370.0,0.00242161]
[1738009687090,0.52052493,100380.0,100370.0,0.00242161]
[1738009687508,0.42052493,100380.0,100370.0,0.00242161]
[1738009688122,0.52052493,100380.0,100370.0,0.00242161]
[1738009691987,0.70697222,100380.0,100370.0,0.00242161]
[1738009692389,0.60962493,100380.0,100370.0,0.00242161]
[1738009693045,0.93852493,100380.0,100370.0,0.00242161]
[1738009693442,0.92852493,100380.0,100370.0,0.00242161]
[1738009693641,0.84942493,100380.0,100370.0,0.00242161]
[1738009698638,0.50092089,100380.0,100370.0,0.00242161]
[1738009700179,0.59826818,100380.0,100370.0,0.00242161]
[1738009700803,0.50092089,100380.0,100370.0,0.00242161]
[1738009703510,0.40092089,100380.0,100370.0,0.00242161]
[1738009704675,0.39692089,100380.0,100370.0,0.00142161]
[1738009705104,0.39992089,100380.0,100370.0,0.00142161]
[1738009705910,0.49992089,100380.0,100370.0,0.00142161]
[1738009707121,0.49992089,100380.0,100360.0,0.37195131]
[1738009707122,0.633547,100370.0,100360.0,0.37195131]
[1738009707384,2.37439582,100370.0,100360.0,0.35198331]
[1738009707557,2.36439582,100370.0,100360.0,0.35198331]
[1738009707958,2.22139582,100370.0,100360.0,0.35198331]
[1738009708192,1.89479582,100370.0,100360.0,0.35198331]
[1738009708410,1.89479582,100370.0,100360.0,0.35865755]
[1738009708848,1.91196001,100370.0,100360.0,0.35974942]
[1738009709676,1.90496001,100370.0,100360.0,0.35874942]
[1738009711145,2.01046001,100370.0,100360.0,0.35974942]
[1738009711561,2.01046001,100370.0,100360.0,0.35874942]
[1738009711562,2.01620093,100370.0,100360.0,0.35874942]
[1738009711769,2.02220093,100370.0,100360.0,0.35974942]
[1738009711975,2.15520093,100370.0,100360.0,0.35974942]
[1738009716461,2.17556869,100370.0,100360.0,0.35974942]
[1738009716792,2.07556869,100370.0,100360.0,0.35974942]
[1738009717525,2.06556869,100370.0,100360.0,0.35974942]
[1738009717840,2.07556869,100370.0,100360.0,0.35974942]
[1738009718068,2.06556869,100370.0,100360.0,0.35974942]
[1738009718268,2.07556869,100370.0,100360.0,0.35974942]
[1738009718467,2.06556869,100370.0,100360.0,0.35974942]
[1738009718871,2.0124045,100370.0,100360.0,0.35974942]
[1738009719158,1.80535052,100370.0,100360.0,0.35974942]
[1738009719370,1.90535052,100370.0,100360.0,0.35974942]
[1738009719729,2.05535052,100370.0,100360.0,0.35974942]
[1738009720140,2.03498276,100370.0,100360.0,0.35974942]
[1738009720735,1.78498276,100370.0,100360.0,0.35974942]
[1738009721142,1.54818847,100370.0,100360.0,0.59131042]
[1738009721332,1.68763547,100370.0,100360.0,0.44184942]
[1738009721541,1.78763547,100370.0,100360.0,0.35974942]
[1738009721846,1.88498276,100370.0,100360.0,0.35974942]
[1738009722424,2.03247165,100370.0,100360.0,0.35974942]
[1738009723028,2.05547165,100370.0,100360.0,0.35974942]
[1738009723212,2.61927165,100370.0,100360.0,0.35974942]
[1738009723354,2.61927165,100370.0,100360.0,0.35298331]
[1738009723814,2.61927165,100370.0,100360.0,0.35976552]
[1738009725091,2.61927165,100370.0,100360.0,0.35298331]
[1738009727863,2.70057165,100370.0,100360.0,0.35298331]
[1738009730080,2.34167165,100370.0,100360.0,0.25334331]
[1738009730283,2.34167165,100370.0,100360.0,0.09139023]
[1738009730488,2.39117165,100370.0,100360.0,0.03090874]
[1738009730726,2.39117165,100370.0,100360.0,0.01048722]
[1738009730933,0.273,100360.0,100350.0,0.00029631]
[1738009731146,0.3849,100340.0,100330.0,0.00029673]
[1738009731333,2.15273982,100340.0,100330.0,0.00044443]
[1738009731561,2.23483982,100340.0,100330.0,0.00044443]
[1738009732198,0.272506,100330.0,100320.0,0.00029673]
[1738009732407,0.87254333,100330.0,100320.0,0.00029673]
[1738009732613,1.96520211,100330.0,100320.0,0.00029673]
[1738009733229,1.84485482,100330.0,100320.0,0.00029673]
[1738009734748,1.75085482,100330.0,100320.0,0.00129673]
[1738009735395,1.75085482,100330.0,100320.0,0.00029673]
[1738009735597,1.74485482,100330.0,100320.0,0.00029673]
[1738009735903,1.90085482,100330.0,100320.0,0.00129673]
[1738009736109,1.99820211,100330.0,100320.0,0.00129673]
[1738009736322,1.99220211,100330.0,100320.0,0.00029673]
[1738009736655,1.99220211,100330.0,100320.0,0.00129673]
[1738009736656,1.99820211,100330.0,100320.0,0.00129673]
[1738009737711,1.91245382,100330.0,100320.0,0.00129673]
[1738009737994,1.50400153,100330.0,100320.0,0.15081773]
[1738009738114,1.50400153,100330.0,100320.0,0.23211773]
[1738009738331,1.52395332,100330.0,100320.0,0.27871773]
[1738009738533,1.51400153,100330.0,100320.0,0.27871773]
[1738009738797,1.53395332,100330.0,100320.0,0.27871773]
[1738009739333,1.52795332,100330.0,100320.0,0.27771773]
[1738009739891,1.53095332,100330.0,100320.0,0.27771773]
[1738009740643,0.99831149,100330.0,100320.0,0.55039493]
[1738009740881,0.003,100330.0,100320.0,0.67074222]
[1738009741087,0.99545834,100340.0,100330.0,0.447306]
[1738009741290,0.99545834,100340.0,100330.0,0.66733049]
[1738009741495,0.99545834,100340.0,100330.0,0.55354814]
[1738009741717,0.99545834,100340.0,100330.0,0.43087094]
[1738009741930,0.99545834,100340.0,100330.0,0.55354814]
[1738009742349,0.99545834,100340.0,100330.0,0.67389543]
[1738009742574,0.99845834,100340.0,100330.0,0.67389543]
[1738009743665,0.00314685,100340.0,100330.0,0.67389543]
[1738009743951,0.99630149,100350.0,100340.0,0.448291]
[1738009744165,0.99639957,100350.0,100340.0,0.66831549]
[1738009744298,0.99540957,100350.0,100340.0,0.67485748]
[1738009744504,0.99540957,100350.0,100340.0,0.67492205]
[1738009744930,0.99540957,100350.0,100340.0,0.52918028]
[1738009745135,1.00140957,100350.0,100340.0,0.53018028]
[1738009745525,1.49809961,100350.0,100340.0,0.52918028]
[1738009745728,1.49809961,100350.0,100340.0,0.53018028]
[1738009746111,1.49824121,100350.0,100340.0,0.53018028]
[1738009747339,1.49824121,100350.0,100340.0,0.54169458]
[1738009748151,0.99555117,100350.0,100340.0,0.54169458]
[1738009748599,1.49824121,100350.0,100340.0,0.54169458]
[1738009748974,1.49824121,100350.0,100340.0,0.44434729]
[1738009749844,1.49824121,100350.0,100340.0,0.72581682]
[1738009750029,0.99555117,100350.0,100340.0,0.72581682]
[1738009750227,1.49824121,100350.0,100340.0,0.72581682]
[1738009750661,0.99555117,100350.0,100340.0,0.72581682]
[1738009751097,1.49824121,100350.0,100340.0,0.71927483]
[1738009751511,1.49824121,100350.0,100340.0,0.4378053]
[1738009752453,1.50824121,100350.0,100340.0,0.4378053]
[1738009752663,0.51269004,100350.0,100340.0,0.426291]
[1738009752871,1.50800153,100350.0,100340.0,0.350391]
[1738009753075,1.52795332,100350.0,100340.0,0.200391]
[1738009753270,1.62795332,100350.0,100340.0,0.200391]
[1738009753471,1.77742932,100350.0,100340.0,0.200391]
[1738009753635,1.62795332,100350.0,100340.0,0.200391]
[1738009754238,1.52795332,100350.0,100340.0,0.200391]
[1738009754455,1.50800153,100350.0,100340.0,0.200391]
[1738009754957,1.52795332,100350.0,100340.0,0.200391]
[1738009755540,1.67742932,100350.0,100340.0,0.200391]
[1738009755721,1.52795332,100350.0,100340.0,0.200391]
[1738009756987,1.67742932,100350.0,100340.0,0.200391]
[1738009757387,1.52795332,100350.0,100340.0,0.200391]
[1738009757589,1.52809492,100350.0,100340.0,0.200391]
[1738009758219,1.49814313,100350.0,100340.0,0.29773829]
[1738009759067,1.49814313,100350.0,100340.0,0.48186053]
[1738009759377,0.99545309,100350.0,100340.0,0.73441781]
[1738009759586,0.99545309,100350.0,100340.0,0.73741781]
[1738009759798,0.0001416,100350.0,100340.0,0.73741781]
[1738009759973,0.99545309,100350.0,100340.0,0.73741781]
[1738009760175,0.0001416,100350.0,100340.0,0.73741781]
[1738009760410,0.99545309,100350.0,100340.0,0.73741781]
[1738009760806,0.50283164,100350.0,100340.0,0.73741781]
[1738009761761,0.99545309,100350.0,100340.0,0.73741781]
[1738009761970,0.0001416,100350.0,100340.0,0.73741781]
[1738009762174,0.02358112,100370.0,100360.0,0.273561]
[1738009762403,0.02258762,100370.0,100360.0,0.57803053]
[1738009762608,0.02258762,100370.0,100360.0,0.72803053]
[1738009762609,0.0001416,100370.0,100360.0,0.72803053]
[1738009763648,0.0021416,100370.0,100360.0,0.72803053]
[1738009764696,0.0021416,100370.0,100360.0,0.72787393]
[1738009764912,0.0001416,100370.0,100360.0,0.72787393]
[1738009765170,0.0001416,100370.0,100360.0,0.73187393]
[1738009765377,0.0001416,100370.0,100360.0,0.67053789]
[1738009765996,0.0001416,100370.0,100360.0,0.68152783]
[1738009767210,0.0001416,100370.0,100360.0,0.71207862]
[1738009768005,6e-07,100370.0,100360.0,0.70807862]
[1738009768210,6e-07,100370.0,100360.0,0.71507862]
[1738009768838,6e-07,100370.0,100360.0,0.73506995]
[1738009769045,0.0001417,100390.0,100380.0,0.444332]
[1738009769246,0.00028943,100390.0,100380.0,0.97873118]
[1738009769457,4.3e-07,100390.0,100380.0,0.97873118]
[1738009769659,1.49814313,100430.0,100420.0,0.149372]
[1738009769858,1.49829084,100430.0,100420.0,0.37034456]
[1738009770060,1.49829084,100430.0,100420.0,0.41854889]
[1738009770261,0.00028931,100430.0,100420.0,0.44154889]
[1738009770868,0.00028931,100430.0,100420.0,0.66894889]
[1738009771456,0.00028931,100430.0,100420.0,0.56854889]
[1738009771662,0.50297935,100430.0,100420.0,0.56854889]
[1738009771871,0.00028931,100430.0,100420.0,0.56854889]
[1738009772049,0.50297935,100430.0,100420.0,0.56854889]
[1738009772207,0.00028931,100430.0,100420.0,0.56854889]
[1738009772616,0.50297935,100430.0,100420.0,0.56854889]
[1738009773764,0.50297935,100430.0,100420.0,0.57986463]
[1738009774528,1.49829084,100430.0,100420.0,0.57986463]
[1738009775201,1.49820106,100430.0,100420.0,0.48251734]
[1738009775819,0.99551102,100430.0,100420.0,0.48251734]
[1738009776337,1.49820106,100430.0,100420.0,0.48251734]
[1738009776837,0.99551102,100430.0,100420.0,0.48251734]
[1738009777033,0.99551102,100430.0,100420.0,0.57986463]
[1738009777464,0.99551102,100430.0,100420.0,0.60286463]
[1738009777991,0.99551102,100430.0,100420.0,0.59458522]
[1738009779843,0.00019953,100430.0,100420.0,0.59458522]
[1738009780055,0.00019953,100430.0,100420.0,0.67488522]
[1738009780608,0.99551102,100430.0,100420.0,0.67488522]
[1738009781170,1.49820106,100430.0,100420.0,0.57158522]
[1738009781431,1.50820106,100430.0,100420.0,0.149372]
[1738009781834,1.52815285,100430.0,100420.0,0.14966915]
[1738009782242,0.53264183,100430.0,100420.0,0.14966915]
[1738009782463,1.49800153,100440.0,100420.0,0.53536233]
[1738009782657,0.0011222,100450.0,100440.0,0.149342]
[1738009782868,0.5043044,100450.0,100440.0,0.26468765]
[1738009783074,0.5033238,100450.0,100440.0,0.26369219]
[1738009783282,0.00063376,100450.0,100440.0,0.26369219]
[1738009783491,0.00063376,100450.0,100440.0,0.53403948]
[1738009784504,0.00063376,100450.0,100440.0,0.69418967]
[1738009784971,0.00063376,100450.0,100440.0,0.57983948]
[1738009785673,0.00063376,100450.0,100440.0,0.69418967]
[1738009785875,0.00063376,100450.0,100440.0,0.57983948]
[1738009786075,0.5033238,100450.0,100440.0,0.57983948]
[1738009786289,0.5033238,100450.0,100440.0,0.45949219]
[1738009786483,0.53327559,100450.0,100440.0,0.149342]
[1738009786686,1.52858708,100450.0,100440.0,0.149342]
[1738009788967,0.01995179,100440.0,100430.0,0.199126]
[1738009789191,0.01995179,100430.0,100420.0,0.44499815]
[1738009789400,1.51795332,100430.0,100420.0,0.39859815]
[1738009790230,1.52795332,100430.0,100420.0,0.39859815]
[1738009790437,1.52795332,100430.0,100420.0,0.19944615]
[1738009790642,1.67731032,100430.0,100420.0,0.19944615]
[1738009790858,1.74621032,100430.0,100420.0,0.00029715]
[1738009791064,1.72625853,100430.0,100420.0,0.00029715]
[1738009791686,1.82625853,100430.0,100420.0,0.00029715]
[1738009792306,1.57690153,100430.0,100420.0,0.14966915]
[1738009792520,1.60685332,100430.0,100420.0,0.14966915]
[1738009792728,1.50800153,100430.0,100420.0,0.15266915]
[1738009793161,1.50800153,100430.0,100420.0,0.14966915]
[1738009795954,1.50800153,100430.0,100420.0,0.14971851]
[1738009796815,0.99531149,100430.0,100420.0,0.26506445]
[1738009797023,0.99531149,100430.0,100420.0,0.2640687]
[1738009797175,0.99531149,100430.0,100420.0,0.46172909]
[1738009797377,0.01995179,100440.0,100430.0,0.149357]
[1738009797378,1.51795332,100440.0,100430.0,0.149357]
[1738009797584,1.49800153,100440.0,100430.0,0.36205006]
[1738009797789,0.99531149,100440.0,100430.0,0.39634103]
[1738009798216,1.49800153,100440.0,100430.0,0.39639039]
[1738009798364,0.99531149,100440.0,100430.0,0.39639039]
[1738009798567,0.99694045,100450.0,100440.0,0.149342]
[1738009798927,1.49863529,100450.0,100440.0,0.39631048]
[1738009799366,1.52858708,100450.0,100440.0,0.18466236]
[1738009799858,1.00594525,100450.0,100440.0,0.30000805]
[1738009800089,0.00063376,100450.0,100440.0,0.41935984]
[1738009800304,0.00063376,100450.0,100440.0,0.80911003]
[1738009800517,0.0001416,100460.0,100440.0,0.80911003]
[1738009800730,4e-07,100470.0,100460.0,0.370413]
[1738009800952,1e-07,100480.0,100470.0,0.370398]
[1738009801167,0.015115,100490.0,100480.0,0.172283]
[1738009801393,0.015115,100490.0,100480.0,0.61369284]
[1738009801605,0.0001813,100500.0,100490.0,0.62856838]
[1738009801810,0.0001813,100500.0,100490.0,0.75653312]
[1738009802026,0.00032894,100500.0,100490.0,0.75653312]
[1738009802453,0.01,100530.0,100520.0,0.26357419]
[1738009802663,0.01,100530.0,100520.0,0.14927336]
[1738009803087,1.01627267,100530.0,100520.0,4.936e-05]
[1738009803296,0.99531149,100530.0,100520.0,0.19901236]
[1738009803498,0.01,100530.0,100520.0,0.19901236]
[1738009804465,0.02995179,100530.0,100520.0,0.19901236]
[1738009804667,0.01,100530.0,100520.0,0.19901236]
[1738009805247,1.00632088,100530.0,100520.0,4.936e-05]
[1738009805455,1.19265878,100530.0,100520.0,4.936e-05]
[1738009805656,1.00531149,100530.0,100520.0,0.32050171]
[1738009806077,1.00531149,100530.0,100520.0,0.47050171]
[1738009806284,1.50800153,100530.0,100520.0,0.47050171]
[1738009806526,1.50800153,100530.0,100520.0,0.29897335]
[1738009806737,1.50800153,100530.0,100520.0,0.298912]
[1738009807772,1.50800153,100530.0,100520.0,0.148912]
[1738009807973,1.51795332,100530.0,100520.0,0.148912]
[1738009808186,0.01,100520.0,100510.0,0.198972]
[1738009808436,1.52795332,100520.0,100510.0,0.198972]
[1738009809493,0.02995179,100510.0,100500.0,0.198988]
[1738009809699,1.02526328,100510.0,100500.0,0.198988]
[1738009809909,1.52795332,100510.0,100500.0,0.198988]
[1738009810958,0.02995179,100500.0,100490.0,0.00029694]
[1738009811163,1.52896271,100500.0,100490.0,0.14956194]
[1738009811365,1.02526328,100500.0,100490.0,0.14956194]
[1738009811638,1.52795332,100500.0,100490.0,0.14956194]
[1738009811846,1.02526328,100500.0,100490.0,0.14956194]
[1738009812044,1.02526328,100500.0,100490.0,0.32079029]
[1738009812915,1.52795332,100500.0,100490.0,0.32079029]
[1738009813115,1.02526328,100500.0,100490.0,0.32079029]
[1738009813318,1.52795332,100500.0,100490.0,0.32079029]
[1738009813949,1.60555332,100500.0,100490.0,0.32079029]
[1738009814182,1.52795332,100500.0,100490.0,0.32079029]
[1738009814411,1.52795332,100500.0,100490.0,0.32379029]
[1738009815039,1.52795332,100500.0,100490.0,0.15256194]
[1738009815451,1.59800153,100500.0,100490.0,0.15256194]
[1738009816060,1.69534882,100500.0,100490.0,0.14956194]
[1738009817300,1.71530061,100500.0,100490.0,0.14956194]
[1738009817506,1.69534882,100500.0,100490.0,0.14956194]
[1738009817824,1.69534882,100500.0,100490.0,0.15495239]
[1738009818023,1.52795332,100500.0,100490.0,0.32618074]
[1738009818449,1.50800153,100500.0,100490.0,0.32618074]
[1738009818655,1.52795332,100500.0,100490.0,0.32618074]
[1738009818857,1.50800153,100500.0,100490.0,0.32618074]
[1738009820550,1.52795332,100500.0,100490.0,0.32618074]
[1738009820750,1.52795332,100500.0,100490.0,0.15495239]
[1738009820956,1.51795332,100500.0,100490.0,0.15495239]
[1738009821376,0.99531149,100500.0,100490.0,0.32618074]
[1738009822017,0.99531149,100500.0,100490.0,0.44652803]
[1738009822234,0.0001416,100510.0,100490.0,0.59642803]
[1738009822438,0.99521149,100510.0,100500.0,0.46662349]
[1738009822642,0.99531149,100510.0,100500.0,0.66461964]
[1738009822852,0.99531149,100510.0,100500.0,0.67000053]
[1738009823686,0.99531149,100510.0,100500.0,0.67300053]
[1738009824679,0.99531149,100510.0,100500.0,0.84600053]
[1738009824888,0.99629209,100520.0,100510.0,0.172238]
[1738009825093,0.99629209,100520.0,100510.0,0.59180841]
[1738009825307,0.99531149,100520.0,100510.0,0.59616151]
[1738009826528,0.02995179,100530.0,100520.0,0.149224]
[1738009826728,0.99531149,100530.0,100520.0,0.42412699]
[1738009826947,0.99531149,100530.0,100520.0,0.59613227]
[1738009828563,0.99531149,100530.0,100520.0,0.47578498]
[1738009828943,0.99545299,100530.0,100520.0,0.59613227]
[1738009829313,0.99545299,100530.0,100520.0,0.64473227]
[1738009830987,0.99545299,100530.0,100520.0,0.65570496]
[1738009831541,0.99545299,100530.0,100520.0,0.68612084]
[1738009832594,0.99545299,100530.0,100520.0,0.6290201]
[1738009835502,0.99545299,100530.0,100520.0,0.4820201]
[1738009835704,0.99545299,100530.0,100520.0,0.4590201]
[1738009837293,0.99545299,100530.0,100520.0,0.4988611]
[1738009838297,0.99545299,100530.0,100520.0,0.61298871]
[1738009838498,5e-07,100530.0,100520.0,0.86198871]
[1738009838723,0.02132381,100550.0,100540.0,0.421294]
[1738009838888,0.02231841,100550.0,100540.0,0.66318478]
[1738009839087,0.02147137,100550.0,100540.0,0.6686535]
[1738009839397,1.01678286,100550.0,100540.0,0.6686535]
[1738009839829,1.01678286,100550.0,100540.0,0.34530621]
[1738009842356,0.94208592,100550.0,100540.0,0.5926535]
[1738009842548,0.03009329,100560.0,100550.0,0.149179]
[1738009842841,1.02589645,100560.0,100550.0,0.26803033]
[1738009843538,1.52858649,100560.0,100550.0,0.26803033]
[1738009843746,1.52858649,100560.0,100550.0,0.15390272]
[1738009844179,1.66775049,100560.0,100550.0,0.15390272]
[1738009844404,1.84289778,100560.0,100550.0,0.00544267]
[1738009844604,1.84289778,100560.0,100550.0,0.15462167]
[1738009845148,1.69373378,100560.0,100550.0,0.15462167]
[1738009845344,1.84289778,100560.0,100550.0,0.15462167]
[1738009845566,1.84289778,100560.0,100550.0,0.00544267]
[1738009845835,1.92294599,100560.0,100550.0,0.00544267]
[1738009846228,1.52858649,100560.0,100550.0,0.26874928]
[1738009846429,1.4986347,100560.0,100550.0,0.26874928]
[1738009846562,1.4986347,100560.0,100550.0,0.31824928]
[1738009846770,1.4986347,100560.0,100550.0,0.34863775]
[1738009846987,0.99594466,100560.0,100550.0,0.34863775]
[1738009847222,0.99594466,100560.0,100550.0,0.44598504]
[1738009847423,0.99594466,100560.0,100550.0,0.59598504]
[1738009848371,0.99580316,100560.0,100550.0,0.59598504]
[1738009848532,0.99580316,100560.0,100550.0,0.56559657]
[1738009848752,1.4984932,100560.0,100550.0,0.56559657]
[1738009849183,1.4984932,100560.0,100550.0,0.41559657]
[1738009849961,0.99580316,100560.0,100550.0,0.67972418]
[1738009850207,0.99580316,100560.0,100550.0,0.59599636]
[1738009850451,0.99580316,100560.0,100550.0,0.56559657]
[1738009851171,1.4984932,100560.0,100550.0,0.3287769]
[1738009851900,1.5084932,100560.0,100550.0,0.32907405]
[1738009852111,1.5086347,100560.0,100550.0,0.27957405]
[1738009852981,1.6477987,100560.0,100550.0,0.01626744]
[1738009853189,1.74514599,100560.0,100550.0,0.00573982]
[1738009853399,1.52858649,100560.0,100550.0,0.26904643]
[1738009853609,1.5086347,100560.0,100550.0,0.26904643]
[1738009853806,1.5086347,100560.0,100550.0,0.15491882]
[1738009854646,1.4986347,100560.0,100550.0,0.15491882]
[1738009854851,1.6477987,100560.0,100550.0,0.15491882]
[1738009855195,1.6477987,100560.0,100550.0,0.00573982]
[1738009855395,1.84514599,100560.0,100550.0,0.00573982]
[1738009858745,1.84514599,100560.0,100550.0,0.0071099]
[1738009859785,1.82404599,100560.0,100550.0,0.0071099]
[1738009859996,1.92139328,100560.0,100550.0,0.0071099]
[1738009860401,2.07139328,100560.0,100550.0,0.0071099]
[1738009861040,1.97404599,100560.0,100550.0,0.0071099]
[1738009861242,2.07404599,100560.0,100550.0,0.0071099]
[1738009861891,1.92404599,100560.0,100550.0,0.0071099]
[1738009862306,2.02293399,100560.0,100550.0,0.00682508]
[1738009862514,2.02293399,100560.0,100550.0,0.149179]
[1738009862515,1.5775347,100560.0,100550.0,0.149179]
[1738009862729,1.6477987,100560.0,100550.0,0.149179]
[1738009863138,0.01,100550.0,100540.0,0.149186]
[1738009863384,1.50800153,100550.0,100540.0,0.149186]
[1738009863841,0.01995179,100540.0,100530.0,0.443062]
[1738009864051,1.01516328,100540.0,100530.0,0.443062]
[1738009864253,1.02516328,100540.0,100530.0,0.443062]
[1738009864456,1.01516328,100540.0,100530.0,0.443062]
[1738009864904,1.65719553,100540.0,100530.0,0.0452]
[1738009865108,0.01985179,100530.0,100520.0,0.39819915]
[1738009865313,1.51785332,100530.0,100520.0,0.39819915]
[1738009865736,1.51785332,100530.0,100520.0,0.00029715]
[1738009865737,1.52785332,100530.0,100520.0,0.00029715]
[1738009865971,1.65721053,100530.0,100520.0,0.00029715]
[1738009866596,1.64721053,100530.0,100520.0,0.00029715]
[1738009866801,1.02516328,100530.0,100520.0,0.15652115]
[1738009867043,0.99531149,100550.0,100520.0,0.63729077]
[1738009867249,0.00063317,100560.0,100550.0,0.149179]
[1738009867454,0.00063317,100560.0,100550.0,0.19577338]
[1738009867893,1.01579645,100560.0,100550.0,0.19577338]
[1738009868099,0.99594466,100560.0,100550.0,0.19577338]
[1738009868731,1.01579645,100560.0,100550.0,0.19577338]
[1738009868942,0.99594466,100560.0,100550.0,0.37192067]
[1738009869147,0.99594466,100560.0,100550.0,0.37092629]
[1738009869852,0.99594466,100560.0,100550.0,0.4850539]
[1738009870269,0.99594466,100560.0,100550.0,0.51550674]
[1738009870685,0.99594466,100560.0,100550.0,0.09734729]
[1738009870908,0.00063317,100560.0,100550.0,0.49877586]
[1738009871117,0.00063317,100560.0,100550.0,0.49778151]
[1738009871318,0.00063317,100560.0,100550.0,0.3836539]
[1738009872135,0.99594466,100560.0,100550.0,0.3836539]
[1738009873577,0.99594466,100560.0,100550.0,0.5094539]
[1738009874359,0.99594466,100560.0,100550.0,0.50749411]
[1738009875180,0.00063317,100560.0,100550.0,0.50749411]
[1738009875365,0.00063317,100560.0,100550.0,1.29559864]
[1738009875562,0.0149134,100580.0,100570.0,0.428549]
[1738009875864,0.0149134,100580.0,100570.0,0.66106411]
[1738009876718,0.0149134,100580.0,100570.0,0.51106411]
[1738009877769,0.01482369,100580.0,100570.0,0.51106411]
[1738009877977,0.01482369,100580.0,100570.0,0.51406411]
[1738009879787,0.01482369,100580.0,100570.0,0.51402411]
[1738009879993,0.01482369,100580.0,100570.0,0.53440967]
[1738009880192,1.01013518,100580.0,100570.0,0.53440967]
[1738009881161,0.01482369,100580.0,100570.0,0.53440967]
[1738009881361,0.01482369,100580.0,100570.0,0.54503088]
[1738009883188,0.01482369,100580.0,100570.0,0.46263088]
[1738009884180,0.01482369,100580.0,100570.0,0.61263088]
[1738009884383,0.0002014,100620.0,100610.0,0.14909]
[1738009884581,0.00021094,100630.0,100620.0,0.221275]
[1738009884812,0.00021094,100630.0,100620.0,1.11908123]
[1738009885012,0.13790408,100640.0,100620.0,1.11908123]
[1738009885216,0.12481116,100640.0,100630.0,0.53256857]
[1738009885506,0.12481116,100640.0,100630.0,0.53157511]
[1738009885732,0.12481116,100640.0,100630.0,0.60043562]
[1738009886089,0.0001415,100660.0,100650.0,0.299031]
[1738009886294,0.0001415,100660.0,100650.0,0.50854611]
[1738009886492,0.0001415,100660.0,100650.0,0.39637829]
[1738009886712,0.0001415,100660.0,100650.0,0.35829669]
[1738009886922,0.0001415,100660.0,100650.0,0.09734729]
[1738009887118,0.0201415,100660.0,100650.0,0.00099332]
[1738009887365,0.0301415,100660.0,100640.0,0.149038]
[1738009887568,0.0301415,100660.0,100640.0,0.75575469]
[1738009887767,0.0301415,100660.0,100640.0,0.64383629]
[1738009888179,0.0001415,100660.0,100650.0,0.31801274]
[1738009888383,0.0001415,100660.0,100650.0,0.31701932]
[1738009888610,0.0001415,100660.0,100650.0,0.41436661]
[1738009888813,0.0001415,100670.0,100650.0,0.56436661]
[1738009889020,0.00063308,100670.0,100660.0,0.58834476]
[1738009889267,0.0149134,100680.0,100670.0,0.172001]
[1738009889473,0.01,100730.0,100680.0,0.1952]
[1738009889678,0.99641278,100740.0,100720.0,0.46691532]
[1738009889897,0.99641278,100740.0,100730.0,0.41414761]
[1738009889898,0.00110129,100740.0,100730.0,0.41414761]
[1738009890111,0.00100129,100740.0,100730.0,0.41414761]
[1738009890516,0.00100129,100740.0,100730.0,0.43714761]
[1738009890810,4.15e-05,100740.0,100730.0,0.43714761]
[1738009891017,4.15e-05,100740.0,100730.0,0.42451353]
[1738009891212,4.15e-05,100740.0,100730.0,0.41414761]
[1738009891419,4.15e-05,100740.0,100730.0,0.24615929]
[1738009891631,4.15e-05,100740.0,100730.0,0.41414761]
[1738009892055,4.15e-05,100740.0,100720.0,0.31706278]
[1738009892298,0.178912,100730.0,100720.0,0.00014746]
[1738009892487,0.99531149,100730.0,100720.0,0.00014746]